bitfinex-derivatives/quotes_ETHF0:USTF0_20251204
["timestamp","ask_amount","ask_price","bid_price","bid_amount"]
[1764854446741,0.73300001,3170.7,3170.6,3.10210991]
[1764854446948,0.73300001,3170.7,3170.6,14.70810991]
[1764854447138,1e-08,3170.7,3170.6,14.13770991]
[1764854447648,3.21086321,3171.6,3170.6,25.45495678]
[1764854447834,0.4226,3172.0,3171.9,1.4854]
[1764854447835,5.1395,3172.0,3171.9,1.4854]
[1764854448039,5.1395,3172.0,3171.9,1.45902991]
[1764854448343,1.9317,3172.0,3171.9,2.18322991]
[1764854448543,1.9317,3172.0,3171.9,2.94442991]
[1764854448847,1.93408209,3172.0,3171.9,2.94442991]
[1764854450044,1.5091,3171.9,3171.8,0.15762]
[1764854451949,4.7169,3171.9,3171.8,0.15762]
[1764854453954,1.5091,3171.7,3171.6,0.00472895]
[1764854460663,1.5091,3171.7,3171.6,0.72892895]
[1764854460961,1.5091,3171.7,3171.6,0.00472895]
[1764854461557,1.5091,3171.7,3171.6,0.16235895]
[1764854465063,1.5091,3171.7,3171.6,0.88655895]
[1764854465265,1.5091,3171.7,3171.6,0.16235895]
[1764854469766,1.5091,3171.7,3171.6,1.70115895]
[1764854469964,4.7338,3171.9,3171.8,1.69642]
[1764854470362,4.7338,3171.9,3171.8,0.92932]
[1764854471769,4.7338,3171.9,3171.8,0.15762]
[1764854472864,1.526,3171.7,3171.6,0.00472895]
[1764854482678,0.7649,3171.7,3171.6,1.70115895]
[1764854482882,3.2078,3171.9,3171.6,1.70115895]
[1764854482883,4.7338,3171.9,3171.8,1.69642]
[1764854483076,3.9727,3171.9,3171.8,3.11799677]
[1764854483480,0.00238209,3172.0,3171.9,1.69642]
[1764854486486,0.76490001,3172.0,3171.9,1.69642]
[1764854486676,1e-08,3172.0,3171.9,0.15762]
[1764854487482,1.52600001,3172.0,3171.9,1.69642]
[1764854487879,1e-08,3172.0,3171.9,1.69642]
[1764854490080,1e-08,3172.0,3171.9,0.92472]
[1764854491086,1e-08,3172.0,3171.9,0.15762]
[1764854497187,1.9451,3173.0,3172.9,1.4328]
[1764854497391,1.9451,3173.0,3172.9,2.85437677]
[1764854497793,1.4775,3172.9,3172.8,0.15757]
[1764854498092,1.4804575,3172.9,3172.8,0.16012578]
[1764854498297,1.4804575,3172.9,3172.8,1.59292578]
[1764854498599,1.4804575,3172.9,3172.8,0.16012578]
[1764854498794,1.4804575,3172.9,3172.8,0.00255578]
[1764854503598,1.4804575,3172.9,3172.8,0.73325578]
[1764854504298,1.4804575,3172.9,3172.8,1.44285578]
[1764854504795,1.4804575,3172.9,3172.8,0.73325578]
[1764854506294,1.4804575,3172.9,3172.8,0.00255578]
[1764854507808,1.4271,3172.3,3172.2,0.1576]
[1764854508000,1.4271,3172.3,3172.2,0.8883]
[1764854508302,1.4271,3172.3,3172.2,0.1576]
[1764854508898,1.4271,3172.3,3172.2,0.16025754]
[1764854511507,1.4271,3172.3,3172.2,0.00265754]
[1764854512301,1.4271,3171.8,3171.7,0.15763]
[1764854512502,1.4271,3171.8,3171.7,0.88833]
[1764854512703,1.4271,3171.8,3171.7,0.15763]
[1764854513403,1.4271,3171.8,3171.7,0.15992986]
[1764854517319,4.6349,3171.8,3171.7,0.15992986]
[1764854518514,4.6349,3172.2,3172.1,0.88831]
[1764854518716,4.6349,3172.2,3172.1,0.15761]
[1764854519717,1.4271,3171.8,3171.7,0.00229986]
[1764854520111,1.4271,3171.8,3171.7,1.44259986]
[1764854520313,1.4271,3171.8,3171.7,0.00229986]
[1764854520514,1.4271,3171.8,3171.7,1.44259986]
[1764854521108,1.4271,3171.8,3171.7,0.00229986]
[1764854521316,1.4271,3171.8,3171.7,0.15992986]
[1764854521515,1.4271,3171.8,3171.7,1.60022986]
[1764854521909,0.7144,3171.8,3171.7,1.60022986]
[1764854522120,1.4271,3172.0,3171.9,1.4403]
[1764854524217,1.5156,3172.2,3172.1,1.65011]
[1764854524415,1.5156,3172.2,3172.1,3.07118789]
[1764854524922,1.5156,3172.2,3172.1,0.15761]
[1764854525422,0.7477,3172.2,3172.1,3.08388789]
[1764854526018,1.5156,3172.2,3172.1,3.08388789]
[1764854526626,0.7477,3172.2,3172.1,3.08388789]
[1764854526921,1.9772,3172.5,3172.4,0.7434]
[1764854527226,1.9772,3172.5,3172.4,1.66279]
[1764854527524,1.5156,3172.5,3172.4,1.66279]
[1764854527827,1.9772,3172.5,3172.4,0.90099]
[1764854528013,1.9772,3172.5,3172.4,0.15759]
[1764854531823,1.9772,3172.5,3172.4,1.66279]
[1764854532028,1.5185575,3172.9,3172.8,0.7434]
[1764854532222,1.5156,3172.8,3172.7,2.16447789]
[1764854532528,1.5156,3172.8,3172.7,2.96198669]
[1764854532827,3.2078,3173.4,3173.3,0.7434]
[1764854533125,4.7234,3173.4,3173.3,2.96198669]
[1764854533324,4.7234,3173.4,3173.3,0.15755]
[1764854533828,4.72671779,3173.4,3173.3,3.11953669]
[1764854534022,4.72671779,3173.4,3173.3,2.35773669]
[1764854534524,4.72671779,3173.4,3173.3,0.90095]
[1764854534930,4.72671779,3173.4,3173.3,1.66275]
[1764854535232,4.72671779,3173.4,3173.3,0.15755]
[1764854542736,4.72671779,3173.4,3173.3,0.90095]
[1764854542929,4.72671779,3173.4,3173.3,0.15755]
[1764854543131,4.72671779,3173.4,3173.3,1.66275]
[1764854543830,4.72671779,3173.4,3173.3,0.90095]
[1764854544033,4.72671779,3173.4,3173.3,0.15755]
[1764854548536,0.00331779,3173.4,3173.3,1.66275]
[1764854548736,1.51891779,3173.4,3173.3,1.66275]
[1764854549528,1.5156,3173.9,3173.8,1.5052]
[1764854550023,1.5156,3173.9,3173.8,0.7434]
[1764854550234,1.5156,3173.7,3173.6,3.9512]
[1764854550638,1.51867042,3173.7,3173.6,3.9512]
[1764854550840,1.51867042,3173.7,3173.6,4.713]
[1764854551333,0.00307042,3173.7,3173.6,9.00010188]
[1764854551739,1.5156,3173.9,3173.8,1.66272]
[1764854552639,1.51782112,3173.9,3173.8,1.66272]
[1764854553139,0.74992112,3173.9,3173.8,1.66272]
[1764854553643,3.9705,3174.3,3174.2,0.7434]
[1764854553836,4.6897,3174.3,3174.2,0.7434]
[1764854554229,0.4616,3174.5,3174.0,0.15751]
[1764854554230,4.6897,3174.7,3174.6,0.724]
[1764854554437,1.4819,3174.4,3174.3,1.6586]
[1764854554633,1.48574829,3174.4,3174.3,1.66235637]
[1764854555032,1.48574829,3174.4,3174.3,0.16125637]
[1764854555739,1.48574829,3174.4,3174.3,0.88525637]
[1764854556338,1.48574829,3174.4,3174.3,2.34054346]
[1764854557240,1.48574829,3174.4,3174.3,1.61654346]
[1764854557547,1.48574829,3174.4,3174.3,0.00375637]
[1764854557839,1.4819,3173.8,3173.7,1.45528709]
[1764854558832,1.4819,3173.6,3173.5,1.46001604]
[1764854559042,1.4819,3173.6,3173.5,1.46366367]
[1764854560341,1.4819,3173.6,3173.5,0.00837658]
[1764854560646,1.4819,3173.6,3173.5,0.73237658]
[1764854560835,1.4819,3173.6,3173.5,1.50947658]
[1764854561440,0.7192,3173.6,3173.5,1.50947658]
[1764854561745,0.7192,3173.6,3173.5,1.95087658]
[1764854562045,1.4776,3173.6,3173.5,1.50947658]
[1764854562445,1.4776,3173.6,3173.5,0.73237658]
[1764854562646,1.4776,3173.6,3173.5,0.00837658]
[1764854563137,1.4776,3173.6,3173.5,0.73577658]
[1764854563338,1.4776,3173.6,3173.5,0.00837658]
[1764854564046,1.4776,3173.6,3173.5,0.73577658]
[1764854564549,1.4776,3173.6,3173.5,0.00837658]
[1764854565946,1.4776,3173.6,3173.5,0.73577658]
[1764854566147,1.4776,3173.6,3173.5,1.49317658]
[1764854567247,1.4776,3173.6,3173.5,0.73577658]
[1764854567448,1.4776,3173.6,3173.5,0.00837658]
[1764854568447,1.4776,3173.6,3173.5,1.49317658]
[1764854568649,1.4776,3173.6,3173.5,0.73577658]
[1764854568848,1.4776,3173.6,3173.5,1.49317658]
[1764854569050,1.4776,3173.6,3173.5,0.73577658]
[1764854569248,1.4776,3173.6,3173.5,1.49317658]
[1764854570249,1.4776,3173.6,3173.5,1.65071658]
[1764854570648,0.7152,3173.7,3173.6,1.64233]
[1764854570846,1.4736,3173.7,3173.6,1.64233]
[1764854571042,1.4736,3174.0,3173.9,1.64232]
[1764854571245,1.9018,3174.0,3173.9,1.64232]
[1764854571852,1.9018,3174.0,3173.9,0.88492]
[1764854572553,1.9018,3174.0,3173.9,0.15752]
[1764854573652,1.9018,3174.0,3173.9,0.88492]
[1764854574246,1.4736,3174.0,3173.9,1.64232]
[1764854574555,1.9018,3174.0,3173.9,1.64232]
[1764854575853,1.9018,3174.0,3173.9,0.88492]
[1764854576152,4.6814,3174.2,3174.1,1.4848]
[1764854576941,4.6814,3174.2,3174.1,0.7274]
[1764854577548,1.4736,3174.1,3174.0,0.88491]
[1764854577750,1.4736,3174.1,3174.0,0.15751]
[1764854579453,1.4736,3173.6,3173.5,1.49317658]
[1764854579851,1.4736,3173.6,3173.5,1.65071658]
[1764854580458,1.4736,3173.6,3173.5,3.10679041]
[1764854581150,1.4736,3173.6,3173.5,0.16591658]
[1764854581662,1.4736,3173.6,3173.5,0.00837658]
[1764854582357,42.2736,3173.6,3173.5,0.00837658]
[1764854582856,1.4736,3173.6,3173.5,0.00837658]
[1764854583459,1.4736,3173.6,3173.5,0.73577658]
[1764854583857,1.4736,3173.6,3173.5,0.00837658]
[1764854586759,2.92967383,3173.6,3173.5,0.00837658]
[1764854587058,1.5052,3173.4,3173.3,0.15754]
[1764854587260,4.713,3173.4,3173.3,0.15754]
[1764854587755,1.5052,3173.1,3173.0,4.66387383]
[1764854587947,1.5052,3172.8,3172.7,3.06247278]
[1764854588155,1.5052,3172.8,3172.7,3.06537922]
[1764854588356,0.7336,3172.8,3172.7,3.06537922]
[1764854589062,1.5052,3172.8,3172.7,3.06537922]
[1764854589254,1.5052,3172.8,3172.7,0.16520539]
[1764854589662,1.5052,3172.8,3172.7,1.60930539]
[1764854589860,1.5052,3172.9,3172.8,1.60167]
[1764854590155,0.7336,3172.9,3172.8,1.60167]
[1764854590748,4.71772895,3173.4,3173.3,0.7343]
[1764854590950,4.71772895,3173.4,3173.3,2.90017383]
[1764854591150,4.71772895,3173.4,3173.3,2.19037383]
[1764854591358,1.5052,3173.2,3173.1,0.89186]
[1764854591772,1.5052,3173.2,3173.1,0.15756]
[1764854591956,1.5052,3173.2,3173.1,0.89186]
[1764854592151,1.5052,3173.2,3173.1,1.60166]
[1764854592457,1.5052,3173.2,3173.1,0.89186]
[1764854593262,3.21252895,3173.4,3172.7,0.00763539]
[1764854593263,1.5052,3172.8,3172.7,0.00763539]
[1764854594466,1.5052,3172.8,3172.7,0.89951539]
[1764854594857,3.6597,3173.0,3172.7,0.89951539]
[1764854594858,3.6597,3173.0,3172.7,2.87252324]
[1764854595063,5.1649,3173.0,3172.9,1.60167]
[1764854595865,5.1649,3173.0,3172.9,0.89187]
[1764854596067,5.1649,3173.0,3172.9,0.15757]
[1764854596557,5.1649,3173.0,3172.9,0.89187]
[1764854597869,5.1649,3173.0,3172.9,1.60167]
[1764854598169,4.713,3173.0,3172.9,1.60167]
[1764854598468,5.1649,3173.0,3172.9,1.60167]
[1764854598769,3.9414,3173.0,3172.9,1.60167]
[1764854599261,4.713,3173.0,3172.9,1.60167]
[1764854599467,3.9414,3173.0,3172.9,1.60167]
[1764854601269,4.713,3173.0,3172.9,1.60167]
[1764854602865,5.1649,3173.0,3172.9,0.15757]
[1764854603175,4.71772895,3173.4,3173.3,0.7343]
[1764854603369,1.5052,3173.2,3173.1,1.60166]
[1764854603569,1.5052,3173.2,3173.1,0.89186]
[1764854604473,1.5052,3173.2,3173.1,0.15756]
[1764854605167,0.7336,3173.2,3173.1,1.60166]
[1764854605370,1.5052,3173.2,3173.1,1.60166]
[1764854607874,3.94612895,3173.4,3173.3,1.60165]
[1764854608166,3.94612895,3173.4,3173.3,0.15755]
[1764854608167,4.71772895,3173.4,3173.3,0.15755]
[1764854609066,4.71772895,3173.4,3173.3,0.89185]
[1764854610274,4.71772895,3173.4,3173.3,1.60165]
[1764854610661,3.94612895,3173.4,3173.3,1.60165]
[1764854610868,4.713,3173.9,3173.8,0.7098]
[1764854611067,4.713,3173.9,3173.8,1.60162]
[1764854612374,3.9414,3173.9,3173.8,1.60162]
[1764854613770,4.713,3173.9,3173.8,1.60162]
[1764854617474,3.2078,3174.3,3174.0,0.15751]
[1764854617678,0.423,3174.5,3174.0,0.15751]
[1764854617679,3.2078,3175.1,3174.3,1.6859]
[1764854618079,1.4749,3175.0,3174.9,1.68587]
[1764854618586,1.9189,3175.0,3174.9,0.15747]
[1764854619078,1.92164406,3175.0,3174.9,0.90827]
[1764854619376,0.00274406,3175.0,3174.9,6.31445785]
[1764854622181,0.00274406,3175.0,3174.9,10.35925172]
[1764854622479,1.47764406,3175.0,3174.9,10.35925172]
[1764854622871,1.92164406,3175.0,3174.9,0.15747]
[1764854626185,1.4974,3174.7,3174.6,0.00472895]
[1764854629288,1.4974,3174.7,3174.6,0.78072895]
[1764854629896,1.4974,3174.7,3174.6,1.69560895]
[1764854630786,1.4974,3174.7,3174.6,0.16220895]
[1764854637492,1.4974,3174.7,3174.6,0.93820895]
[1764854638892,3.9856,3174.8,3174.7,1.5334]
[1764854639085,4.7488,3174.8,3174.7,0.776]
[1764854639285,1.541,3174.7,3174.6,0.93820895]
[1764854639893,1.541,3174.7,3174.6,0.16220895]
[1764854643985,3.9178,3174.8,3174.7,1.67688]
[1764854644196,1.41474406,3175.0,3174.9,1.67687]
[1764854644387,1.87804406,3175.0,3174.9,0.90817]
[1764854644584,1.87804406,3175.0,3174.9,1.67687]
[1764854645286,0.00274406,3175.0,3174.9,3.09765785]
[1764854648399,0.00274406,3175.0,3174.9,7.20928727]
[1764854648596,5.0831,3176.0,3175.9,1.5194]
[1764854648795,5.0831,3176.0,3175.7,0.15742]
[1764854648796,1.412,3175.8,3175.7,0.90812]
[1764854648999,1.412,3175.8,3175.7,0.15742]
[1764854649597,1.41550695,3175.8,3175.7,0.16003084]
[1764854653798,0.00350695,3175.8,3175.7,1.67943084]
[1764854654004,1.41550695,3175.8,3175.7,1.67943084]
[1764854655509,1.41550695,3175.8,3175.7,0.16003084]
[1764854657811,1.41550695,3175.8,3175.7,0.91073084]
[1764854658513,0.71350695,3175.8,3175.7,1.67943084]
[1764854658708,1.41550695,3175.8,3175.7,1.67943084]
[1764854660214,0.00350695,3175.8,3175.7,1.67943084]
[1764854661705,3.2078,3176.4,3176.3,1.6768]
[1764854661904,4.6198,3176.8,3176.7,1.5194]
[1764854662111,3.2078,3176.8,3176.7,3.13116725]
[1764854662313,3.9178,3177.2,3177.1,1.67676]
[1764854662518,3.2078,3177.2,3177.1,3.13114725]
[1764854662713,3.21064748,3177.2,3177.1,1.67676]
[1764854662914,3.92064748,3177.2,3177.1,3.13114725]
[1764854663418,4.62264748,3177.2,3176.8,1.45438725]
[1764854663714,1.8753,3176.5,3176.0,0.4614]
[1764854663917,5.0831,3176.5,3176.0,1.61179725]
[1764854666315,5.0831,3176.5,3176.1,0.15741]
[1764854666517,5.0831,3176.5,3176.4,1.52412129]
[1764854668030,5.0831,3176.5,3176.4,0.75542129]
[1764854669232,5.0831,3176.5,3176.4,1.52412129]
[1764854669429,3.2078,3176.5,3176.4,1.52412129]
[1764854669630,4.6198,3176.5,3176.4,1.52412129]
[1764854669934,5.0831,3176.5,3176.4,0.75542129]
[1764854670631,5.0831,3176.5,3176.4,1.52412129]
[1764854671728,4.6198,3176.5,3176.4,1.68151129]
[1764854671924,1.412,3176.5,3176.4,5.08443091]
[1764854672228,1.8753,3176.5,3176.4,0.91281129]
[1764854672630,1.412,3176.8,3176.7,0.15738]
[1764854672827,1.412,3176.8,3176.7,1.67678]
[1764854673330,0.71,3176.8,3176.7,1.67678]
[1764854673927,3.2078,3176.9,3176.8,1.65107]
[1764854674130,4.6293,3176.9,3176.8,1.65107]
[1764854674429,2.84875,3176.9,3176.8,1.65107]
[1764854674732,4.6293,3178.4,3178.3,1.651]
[1764854675031,4.6293,3178.4,3178.3,0.1573]
[1764854675524,4.63187149,3178.4,3178.3,0.15986436]
[1764854675731,4.63187149,3178.4,3178.3,0.90376436]
[1764854676123,4.63187149,3178.4,3178.3,0.15986436]
[1764854677237,4.63187149,3178.4,3178.3,0.90376436]
[1764854677422,4.63187149,3178.4,3178.3,1.65356436]
[1764854677733,0.71337149,3178.4,3178.3,4.86136436]
[1764854677934,0.00257149,3178.4,3178.3,4.86136436]
[1764854678231,3.2078,3178.9,3178.3,4.86136436]
[1764854678232,3.2078,3178.9,3178.7,0.15728]
[1764854678435,1.4215,3178.8,3178.7,0.15728]
[1764854679330,1.42421788,3178.8,3178.7,0.15728]
[1764854681027,1.42421788,3178.8,3178.7,0.90118]
[1764854681332,1.42421788,3178.8,3178.7,1.65098]
[1764854681538,0.71351788,3178.8,3178.7,1.65098]
[1764854681929,1.42421788,3178.8,3178.7,1.65098]
[1764854682130,0.00271788,3178.8,3178.7,5.76471576]
[1764854682329,1.1329,3180.0,3179.9,1.4937]
[1764854682534,3.9186,3180.1,3180.0,1.4937]
[1764854683132,3.2078,3180.5,3180.4,1.6509]
[1764854683436,4.63309262,3180.5,3180.4,1.6509]
[1764854683636,3.9251105,3180.5,3180.4,1.6509]
[1764854683843,0.7108,3180.0,3179.9,8.4747]
[1764854684141,0.00379262,3180.5,3180.4,5.73828976]
[1764854684440,0.00379262,3180.5,3180.4,6.95183561]
[1764854684638,1.4280105,3180.5,3180.4,4.90826035]
[1764854684939,0.00379262,3180.5,3180.4,4.8587]
[1764854685140,0.00379262,3180.5,3180.4,14.86586035]
[1764854685334,0.7108,3181.8,3181.7,0.90103]
[1764854685539,0.7108,3181.8,3181.7,0.15713]
[1764854685540,1.4215,3181.8,3181.7,0.15713]
[1764854685739,0.71351788,3181.8,3181.7,4.85863]
[1764854685940,0.00271788,3181.8,3181.7,4.85863]
[1764854686136,3.2078,3183.2,3182.5,1.65079]
[1764854686340,0.4221,3183.0,3182.5,1.65079]
[1764854686645,3.21017354,3183.2,3183.1,1.4937]
[1764854687146,3.21017354,3183.2,3183.1,13.83740532]
[1764854687147,0.00237354,3183.2,3183.1,13.83740532]
[1764854687441,0.7748,3184.4,3184.0,0.15702]
[1764854687639,0.7748,3184.1,3184.0,3.2078]
[1764854687840,3.2078,3184.4,3184.3,1.4704]
[1764854688046,0.00509142,3184.4,3184.3,1.4704]
[1764854688241,3.2078,3185.2,3184.7,1.4704]
[1764854688545,3.2078,3185.2,3184.3,4.17126543]
[1764854688546,3.2107032,3185.2,3184.8,1.4704]
[1764854688837,3.2107032,3185.2,3185.1,0.7378]
[1764854689042,0.0029032,3185.2,3185.1,1.4704]
[1764854689237,0.00799462,3185.2,3185.1,8.68943252]
[1764854690340,0.00799462,3185.2,3185.1,4.6782]
[1764854690535,0.78279462,3185.2,3185.1,0.7378]
[1764854690739,0.7748,3184.8,3184.7,3.2078]
[1764854691039,0.7748,3184.5,3184.3,3.21083291]
[1764854691243,0.4655,3184.8,3184.3,0.00303291]
[1764854691244,0.7748,3184.4,3184.3,0.00303291]
[1764854691438,1.4967,3184.0,3183.9,0.0047135]
[1764854692640,1.4967,3184.0,3183.9,0.00757551]
[1764854693035,7.4967,3184.0,3183.9,0.00757551]
[1764854693236,0.7748,3183.2,3183.1,13.3938]
[1764854693442,1.50179142,3183.2,3183.1,3.2078]
[1764854694146,1.50179142,3183.2,3183.1,3.21175893]
[1764854694449,0.77989142,3183.2,3183.1,3.21175893]
[1764854694646,1.50179142,3183.2,3183.1,0.00395893]
[1764854695045,0.77989142,3183.2,3183.1,0.00395893]
[1764854695652,0.004662,3183.5,3183.4,1.4704]
[1764854695848,0.004662,3183.5,3183.4,4.6782]
[1764854696050,0.00975342,3183.5,3183.4,4.6782]
[1764854696253,0.00975342,3183.5,3183.4,3.9456]
[1764854696545,0.00975342,3183.5,3183.4,4.6782]
[1764854696846,1.4967,3184.1,3183.4,7.23834321]
[1764854697038,0.00509142,3183.8,3183.5,3.2078]
[1764854698050,0.00509142,3183.8,3183.7,0.7378]
[1764854698250,0.00509142,3183.8,3183.7,1.4704]
[1764854700550,3.2078,3184.6,3183.7,1.4704]
[1764854700748,0.00509142,3184.4,3184.3,1.4704]
[1764854701048,1.4967,3184.7,3184.6,0.15699]
[1764854701245,0.77989142,3184.7,3184.6,0.15699]
[1764854701749,1.50179142,3184.7,3184.6,0.15699]
[1764854702645,0.77989142,3184.7,3184.6,0.89479]
[1764854702840,1.50179142,3184.7,3184.6,0.15699]
[1764854703045,1.50179142,3184.7,3184.4,3.2078]
[1764854703249,1.4967,3184.5,3184.4,3.2078]
[1764854703449,0.7748,3184.5,3184.4,0.7378]
[1764854703845,1.4757,3184.4,3184.3,0.0047135]
[1764854705548,0.7616,3183.6,3183.0,3.6718]
[1764854705749,1.4757,3183.4,3183.3,0.15705]
[1764854707060,4.6835,3183.4,3183.3,0.15705]
[1764854707656,1.4757,3183.2,3183.0,0.0047135]
[1764854708156,1.48079142,3183.2,3183.0,0.0047135]
[1764854710060,1.4757,3182.9,3182.8,6.988]
[1764854710263,1.4757,3182.4,3182.3,10.177]
[1764854710964,1.47792428,3182.4,3182.3,10.18082418]
[1764854711262,1.47792428,3182.4,3182.3,0.00382418]
[1764854712356,1.4757,3182.1,3182.0,0.0047135]
[1764854712767,1.48079142,3182.1,3182.0,0.0047135]
[1764854713062,1.4757,3181.9,3181.8,10.843]
[1764854713361,1.4757,3181.3,3181.2,3.2078]
[1764854713564,1.4757,3181.3,3181.2,3.21161869]
[1764854713755,1.4757,3181.3,3181.2,3.96481869]
[1764854713956,0.0047135,3181.6,3181.5,0.7532]
[1764854714161,1.54054395,3181.6,3181.5,0.7532]
[1764854714359,0.7616,3181.4,3181.3,0.15715]
[1764854714562,3.2078,3182.2,3182.1,1.4566]
[1764854714760,5.4573382,3182.2,3182.1,0.91031]
[1764854714961,5.4573382,3182.2,3182.1,0.15711]
[1764854715464,4.7432382,3182.2,3182.1,0.91031]
[1764854716174,0.7738382,3182.2,3182.1,1.61371]
[1764854716366,0.4683135,3182.5,3182.3,1.4566]
[1764854716367,0.0047135,3182.5,3182.3,1.4566]
[1764854716559,0.0073157,3182.4,3182.3,1.4566]
[1764854717170,0.0073157,3182.4,3182.3,1.6137]
[1764854718266,0.7689157,3182.4,3182.3,0.9103]
[1764854718860,0.00222428,3182.4,3182.3,5.65352384]
[1764854719061,0.77260194,3183.3,3183.0,0.15706]
[1764854719266,1.48079142,3183.1,3183.0,0.15706]
[1764854719454,2.25339336,3183.1,3183.0,0.15706]
[1764854720065,2.25575245,3183.1,3183.0,0.15706]
[1764854721262,2.25575245,3183.1,3183.0,0.91026]
[1764854721461,0.78005245,3183.1,3183.0,1.61366]
[1764854722358,1.54165245,3183.1,3183.0,0.91026]
[1764854723570,2.25575245,3183.1,3183.0,0.15706]
[1764854724670,2.25575245,3183.1,3183.0,0.91026]
[1764854724869,2.25575245,3183.1,3183.0,0.15706]
[1764854730869,1.54165245,3183.1,3183.0,1.61366]
[1764854731066,0.78005245,3183.1,3183.0,2.05926]
[1764854731262,0.00745051,3183.1,3183.0,2.05926]
[1764854733267,3.2078,3183.8,3183.0,2.05926]
[1764854733268,0.77118794,3183.7,3183.6,1.61364]
[1764854733472,0.77118794,3183.7,3183.5,0.3841]
[1764854733473,3.2078,3183.8,3183.7,1.61363]
[1764854733775,3.9694,3183.8,3183.7,1.61363]
[1764854733972,3.97449142,3183.8,3183.7,1.61363]
[1764854734169,0.00509142,3183.8,3183.7,1.61363]
[1764854734474,0.00813427,3183.8,3183.7,1.61670031]
[1764854734775,0.00813427,3183.8,3183.7,1.66450031]
[1764854735974,0.00365886,3183.8,3183.7,1.66450031]
[1764854736566,3.2078,3184.3,3183.7,1.66450031]
[1764854736567,3.2078,3184.7,3184.6,0.90819]
[1764854736777,4.7235,3184.7,3184.6,0.15699]
[1764854736976,4.72671391,3184.7,3184.6,0.15699]
[1764854737478,3.98351391,3184.7,3184.6,1.66189]
[1764854737667,3.21101391,3184.7,3184.6,1.66189]
[1764854738071,0.00321391,3184.7,3184.6,1.66189]
[1764854738266,0.00321391,3184.7,3184.6,4.86969]
[1764854738466,0.00321391,3184.7,3184.6,8.88483286]
[1764854738679,4.7235,3185.6,3185.5,0.15694]
[1764854738976,3.9803,3185.6,3185.5,1.66184]
[1764854739177,1.68356333,3186.9,3186.8,1.5049]
[1764854739366,3.2078,3187.3,3186.8,6.96678]
[1764854739676,3.2078,3187.3,3187.2,1.66176]
[1764854739677,0.00274287,3187.3,3187.2,1.66176]
[1764854740070,0.7725,3188.1,3188.0,0.15682]
[1764854740372,3.2078,3188.5,3188.0,12.34552]
[1764854740573,0.4603,3189.0,3188.0,12.34552]
[1764854740574,3.2078,3188.4,3188.3,1.5049]
[1764854740772,3.2078,3188.4,3188.1,0.15681]
[1764854740773,3.2078,3189.0,3188.9,1.66168]
[1764854740974,1.68356333,3190.3,3189.0,0.4029]
[1764854740975,3.2078,3190.1,3189.0,0.4029]
[1764854741277,1.51855243,3190.1,3189.6,0.15674]
[1764854741576,0.7408,3189.7,3189.6,0.00389948]
[1764854741871,3.21065243,3190.1,3189.6,5.54422303]
[1764854742078,3.2078,3190.0,3189.6,5.54422303]
[1764854742269,3.2078,3190.0,3189.6,0.77029948]
[1764854742471,4.6938,3189.7,3189.6,0.00389948]
[1764854743169,3.2078,3190.0,3189.6,4.91317035]
[1764854743469,4.6938,3189.7,3188.6,0.15679]
[1764854743774,3.2078,3189.7,3189.0,3.2078]
[1764854744072,3.21065243,3190.1,3189.5,0.15674]
[1764854744273,3.2078,3189.8,3189.5,0.15674]
[1764854744473,3.2078,3189.9,3189.5,0.92536958]
[1764854744680,3.2078,3189.9,3189.8,0.7664]
[1764854744876,0.00285243,3190.1,3189.8,0.7664]
[1764854745074,3.2078,3190.0,3189.8,0.7664]
[1764854745281,3.2078,3190.0,3189.9,7.0753]
[1764854745585,3.2078,3190.5,3190.0,1.5117]
[1764854745784,3.2078,3190.9,3190.4,0.7664]
[1764854746080,0.4207,3191.3,3189.6,2.32580959]
[1764854746081,1.486,3190.2,3189.8,12.194]
[1764854746277,3.2078,3190.4,3189.6,3.21250566]
[1764854746278,0.7408,3189.7,3189.6,3.21250566]
[1764854746578,0.4207,3190.6,3189.9,4.12306679]
[1764854746777,1.486,3190.1,3190.0,3.2078]
[1764854747282,4.6938,3190.1,3190.0,3.2078]
[1764854747473,3.2078,3190.1,3190.0,4.87622]
[1764854747679,3.2078,3190.1,3190.0,9.0067214]
[1764854748280,0.42455485,3190.6,3190.0,9.0067214]
[1764854748281,0.00385485,3190.6,3190.1,0.15672]
[1764854748474,3.2078,3190.4,3190.1,0.15672]
[1764854748978,3.2078,3190.4,3190.0,3.2078]
[1764854749473,3.2078,3190.3,3190.2,0.7664]
[1764854749670,0.00385485,3190.6,3190.2,0.7664]
[1764854749671,3.2078,3190.4,3190.2,0.7664]
[1764854750385,0.00385485,3190.6,3190.5,0.7664]
[1764854750580,0.00385485,3190.6,3190.2,0.15671]
[1764854750581,3.2078,3190.5,3190.2,0.15671]
[1764854750984,3.2078,3190.5,3190.4,0.7664]
[1764854751186,3.2078,3190.5,3190.2,0.15671]
[1764854751376,3.2078,3190.5,3190.0,7.6438]
[1764854751981,0.7408,3190.1,3190.0,7.6438]
[1764854752178,1.486,3190.1,3190.0,3.2078]
[1764854752375,1.486,3190.1,3189.5,0.00222958]
[1764854752376,1.486,3189.7,3189.5,0.00222958]
[1764854752890,7.9016,3189.7,3189.5,0.00222958]
[1764854753078,1.486,3189.1,3189.0,3.2078]
[1764854753577,4.6938,3189.1,3189.0,3.2078]
[1764854753884,3.2078,3189.1,3189.0,3.9742]
[1764854754181,3.2078,3189.1,3189.0,3.97728571]
[1764854754573,3.9486,3189.1,3189.0,3.21088571]
[1764854754769,3.2078,3189.1,3189.0,3.21088571]
[1764854755084,3.2078,3189.1,3189.0,0.00308571]
[1764854755382,4.6938,3189.1,3189.0,0.00308571]
[1764854755574,3.2078,3189.1,3189.0,1.67155571]
[1764854755779,3.2078,3189.1,3189.0,4.87935571]
[1764854755975,0.00467954,3189.4,3189.3,1.66846]
[1764854756187,3.2078,3190.1,3189.7,0.15674]
[1764854756379,6.4156,3190.1,3189.7,0.15674]
[1764854756581,3.2078,3190.1,3189.7,0.15674]
[1764854756882,3.2078,3190.1,3190.0,1.5117]